bitfinex/quotes_ETHUSD_20220123
["timestamp","ask_amount","ask_price","bid_price","bid_amount"]
[1642976526101,1.594,2439.6,2438.6,1.3649483]
[1642976526300,2.99660173,2439.5,2438.6,1.3649483]
[1642976526503,3.29660173,2439.5,2438.6,1.3649483]
[1642976526701,3.59660173,2439.5,2438.6,1.3649483]
[1642976527600,3.07170641,2439.5,2438.6,1.3649483]
[1642976528605,3.07170641,2439.5,2438.3,1.00032302]
[1642976529656,1.0,2439.4,2438.3,1.00032302]
[1642976529856,2.65635328,2439.3,2438.3,1.00032302]
[1642976530055,2.95635328,2439.3,2438.4,1.39887007]
[1642976531264,0.0027345,2440.4,2439.2,1.38599321]
[1642976531460,3.29680709,2441.2,2440.5,1.38771423]
[1642976531461,0.0027345,2440.6,2440.5,1.38771423]
[1642976531864,0.0027345,2440.6,2440.5,1.56036911]
[1642976532158,0.04,2441.3,2440.5,1.5726375]
[1642976532498,0.04,2441.3,2440.7,1.03201099]
[1642976532697,0.04,2441.3,2440.8,0.05411804]
[1642976532899,0.04,2441.3,2440.8,0.35411804]
[1642976533396,0.04,2441.3,2441.0,0.05411804]
[1642976534400,0.06239094,2441.3,2441.0,0.05411804]
[1642976534600,0.06239094,2441.3,2441.0,1.01661804]
[1642976535401,0.06239094,2441.3,2441.0,0.9625]
[1642976538472,0.06239094,2441.3,2441.0,1.5625]
[1642976538774,0.06239094,2441.3,2441.0,2.5625]
[1642976539776,0.06239094,2441.3,2441.0,3.0545]
[1642976539995,0.06239094,2441.3,2441.0,4.0794058]
[1642976541001,0.06239094,2441.3,2441.0,3.0545]
[1642976542103,0.06239094,2441.3,2441.1,1.0]
[1642976542506,0.06239094,2441.3,2441.0,2.092]
[1642976542703,0.06239094,2441.3,2441.0,1.092]
[1642976542904,0.06239094,2441.3,2441.0,2.092]
[1642976543748,0.06115821,2441.3,2441.0,2.092]
[1642976544157,0.06115821,2441.3,2441.0,1.792]
[1642976544956,0.06115821,2441.3,2441.0,2.092]
[1642976546156,0.06115821,2441.3,2441.0,1.792]
[1642976547502,0.06115821,2441.3,2440.6,0.1638]
[1642976547698,0.06115821,2441.3,2440.0,3.48064248]
[1642976547898,0.06115821,2441.3,2438.8,10.24952]
[1642976547899,0.01265169,2440.8,2439.0,0.61962599]
[1642976548101,0.06115821,2441.3,2439.5,0.01297777]
[1642976548102,0.01208274,2440.1,2439.5,0.01297777]
[1642976548405,2.50850816,2441.1,2438.7,0.1638]
[1642976548406,0.0908678,2439.5,2438.7,0.1638]
[1642976548603,0.492,2439.5,2438.4,1.0259157]
[1642976548803,0.04869619,2439.4,2437.8,0.01258708]
[1642976549001,0.04483321,2439.2,2437.8,0.01258708]
[1642976549207,0.492,2439.1,2437.9,2.32647912]
[1642976549405,0.492,2439.0,2437.9,2.32647912]
[1642976549604,0.492,2438.9,2437.9,2.32647912]
[1642976549801,0.08987166,2438.5,2437.9,2.32647912]
[1642976550102,0.492,2438.5,2437.9,0.6841203]
[1642976550503,0.492,2438.5,2437.8,1.05676098]
[1642976550900,0.492,2438.5,2437.6,7.43]
[1642976551103,2.76414008,2438.4,2437.3,0.01272606]
[1642976551352,0.492,2438.3,2437.3,0.01272606]
[1642976551556,2.87394945,2438.2,2437.1,7.43]
[1642976551759,2.87394945,2438.2,2436.7,0.01268023]
[1642976551760,0.492,2438.1,2436.7,0.01268023]
[1642976551955,0.08987166,2437.4,2436.7,1.11230537]
[1642976552156,2.73518821,2438.0,2437.5,0.26961498]
[1642976552157,0.492,2437.6,2437.5,0.26961498]
[1642976552855,0.6558,2437.6,2437.5,0.26961498]
[1642976553459,3.22413053,2437.6,2437.5,0.26961498]
[1642976553858,4.31400219,2437.6,2437.5,0.26961498]
[1642976554058,4.51974219,2437.6,2437.5,0.26961498]
[1642976554558,4.81974219,2437.6,2437.5,0.26961498]
[1642976554761,5.84681219,2437.6,2437.5,0.26961498]
[1642976555001,5.84681219,2437.6,2436.0,0.01248972]
[1642976555196,1.1638,2437.5,2436.0,0.01248972]
[1642976555393,3.4260642,2437.4,2436.0,0.01248972]
[1642976555597,1.1638,2437.3,2436.0,0.01248972]
[1642976555795,3.29189445,2437.2,2436.3,1.16647425]
[1642976556198,1.0,2437.1,2436.3,1.16647425]
[1642976556400,3.25116654,2437.0,2436.0,0.01248972]
[1642976556599,3.25116654,2437.0,2435.5,7.594]
[1642976557002,1.0,2436.9,2435.5,7.594]
[1642976557202,0.492,2436.8,2435.6,3.49250907]
[1642976557400,0.492,2436.8,2435.5,7.49853992]
[1642976557600,3.01730562,2436.8,2435.9,1.14551477]
[1642976557801,0.492,2436.8,2435.9,1.44551477]
[1642976558203,0.492,2436.8,2435.9,1.14551477]
[1642976558503,0.492,2436.8,2435.9,1.44551477]
[1642976558742,0.492,2436.8,2435.9,1.14551477]
[1642976558949,0.492,2436.8,2435.9,1.44551477]
[1642976559248,0.492,2436.8,2435.4,0.01236578]
[1642976559558,2.31636648,2436.7,2435.3,0.164]
[1642976559751,2.31636648,2436.7,2434.7,0.01220204]
[1642976559752,0.492,2436.6,2434.8,0.00200908]
[1642976559950,0.1638,2436.5,2434.8,0.00200908]
[1642976560150,0.63019997,2436.4,2434.7,0.01220204]
[1642976560348,0.1638,2436.3,2435.2,0.87019046]
[1642976560548,0.492,2436.2,2435.2,0.87019046]
[1642976560949,0.1638,2436.1,2435.2,0.87019046]
[1642976561152,0.492,2436.0,2435.2,0.87019046]
[1642976561449,0.1638,2435.9,2434.7,0.01220204]
[1642976561650,0.492,2435.8,2434.7,0.01220204]
[1642976562055,1.492,2435.8,2434.7,0.01220204]
[1642976562249,0.492,2435.8,2434.7,0.01220204]
[1642976562692,2.483402,2435.7,2434.7,1.34620202]
[1642976562892,0.492,2435.6,2434.7,1.34620202]
[1642976563093,0.492,2435.5,2434.7,1.34620202]
[1642976563697,0.492,2435.5,2435.2,0.99204383]
[1642976564098,0.492,2435.5,2434.7,1.34620202]
[1642976564898,0.492,2435.5,2434.7,0.01220204]
[1642976565099,0.492,2435.5,2434.2,1.1642]
[1642976565302,0.492,2435.5,2434.7,0.98591947]
[1642976565502,2.92376133,2435.5,2434.7,0.98591947]
[1642976565699,2.96183789,2435.5,2434.7,0.98591947]
[1642976566100,0.492,2435.5,2434.7,0.98591947]
[1642976567552,0.492,2435.5,2434.7,1.28591947]
[1642976569257,0.492,2435.5,2434.7,0.98591947]
[1642976571300,0.1638,2435.4,2434.7,0.98591947]
[1642976571499,0.6558,2435.4,2434.2,2.73212579]
[1642976571700,0.6558,2435.4,2434.2,2.66358587]
[1642976571899,0.6558,2435.4,2434.2,0.31207811]
[1642976572299,0.35603462,2436.0,2435.5,1.3116]
[1642976572604,0.492,2435.9,2435.5,1.3116]
[1642976573002,1.492,2435.9,2435.5,1.3116]
[1642976573201,0.20574,2435.8,2435.5,1.3116]
[1642976573404,0.492,2435.7,2435.5,1.3116]
[1642976573602,0.20574,2435.6,2435.5,1.3116]
[1642976573858,0.69774,2435.6,2435.5,1.3116]
[1642976574057,0.492,2435.6,2435.5,1.3116]
[1642976574260,0.69774,2435.6,2435.5,1.3116]
[1642976574458,0.492,2435.6,2435.5,1.3116]
[1642976575060,0.792,2435.6,2435.5,1.3116]
[1642976575261,0.99774,2435.6,2435.5,1.3116]
[1642976575458,0.792,2435.6,2435.5,1.3116]
[1642976575658,0.492,2435.6,2435.5,1.3116]
[1642976575857,0.792,2435.6,2435.5,1.3116]
[1642976576060,0.492,2435.6,2435.5,1.3116]
[1642976577064,0.792,2435.6,2435.5,1.3116]
[1642976578707,0.492,2435.6,2435.5,1.3116]
[1642976581116,0.792,2435.6,2435.5,1.3116]
[1642976581354,0.492,2435.6,2435.5,1.3116]
[1642976585505,0.792,2435.6,2435.5,1.3116]
[1642976585705,0.99774,2435.6,2435.5,1.3116]
[1642976585901,0.792,2435.6,2435.5,1.3116]
[1642976586106,1.092,2435.6,2435.5,1.3116]
[1642976586705,1.29774,2435.6,2435.5,1.3116]
[1642976590159,0.492,2435.6,2435.5,1.3116]
[1642976592263,1.0277923,2435.7,2435.6,0.98399999]
[1642976592525,1.5197923,2435.7,2435.6,0.98399999]
[1642976599356,0.492,2435.7,2435.6,0.98399999]
[1642976599559,1.027493,2435.9,2435.6,0.98399999]
[1642976599758,1.0,2436.0,2435.6,0.98399999]
[1642976600004,0.492,2436.1,2435.7,1.11115962]
[1642976600807,0.492,2436.1,2435.6,0.98399999]
[1642976601011,0.492,2436.1,2435.7,3.49352642]
[1642976601809,0.492,2436.1,2435.6,0.98399999]
[1642976602009,0.492,2436.1,2435.7,3.49345229]
[1642976604158,2.027295,2436.3,2435.7,3.49345229]
[1642976604159,1.027295,2436.3,2435.7,3.49345229]
[1642976604358,1.619295,2436.3,2435.7,3.49345229]
[1642976605159,1.6193363,2436.3,2435.7,3.49345229]
[1642976605862,1.6193363,2436.3,2435.6,2.44205354]
[1642976607162,1.027364,2436.2,2435.6,2.44205354]
[1642976607603,2.62920039,2436.1,2435.6,0.98399999]
[1642976607808,0.592,2436.0,2435.6,0.98399999]
[1642976608007,2.6470685,2436.0,2435.6,0.98399999]
[1642976608207,1.0275143,2435.9,2435.6,0.98399999]
[1642976608816,0.592,2436.0,2435.6,0.98399999]
[1642976609611,0.592,2436.0,2435.9,1.47661161]
[1642976609813,0.592,2436.0,2435.6,0.98399999]
[1642976610816,0.592,2436.0,2435.6,2.35438125]
[1642976611263,0.592,2436.0,2435.6,0.98399999]
[1642976612958,0.592,2436.0,2435.6,1.28399999]
[1642976613158,0.592,2436.0,2435.6,0.98399999]
[1642976613968,1.0273833,2436.1,2435.6,0.98399999]
[1642976619857,3.4809208,2436.1,2435.6,0.98399999]
[1642976620059,1.0,2436.0,2435.6,0.98399999]
[1642976620257,1.9774,2436.0,2435.6,0.98399999]
[1642976620464,3.51226749,2435.9,2435.6,0.98399999]
[1642976620662,1.0,2435.8,2435.6,0.98399999]
[1642976621057,1.027493,2435.9,2435.6,0.98399999]
[1642976622058,1.027493,2435.9,2435.6,0.98304914]
[1642976622260,3.50576748,2435.9,2435.6,0.98304914]
[1642976622506,3.47211594,2435.9,2435.6,0.98304914]
[1642976622705,1.0,2435.8,2435.6,0.98304914]
[1642976622904,1.3,2435.8,2435.6,0.98304914]
[1642976623104,3.3551504,2435.8,2435.6,0.98304914]
[1642976625805,4.3827604,2435.8,2435.6,0.98304914]
[1642976626453,0.3,2435.7,2435.6,0.98304914]
[1642976627870,1.02769,2435.6,2434.5,1.85736175]
[1642976628063,1.0277798,2435.4,2434.5,1.85736175]
[1642976628262,1.8255198,2435.4,2434.5,1.85736175]
[1642976628460,0.3,2435.3,2434.1,2.3031092]
[1642976628659,1.2956,2435.3,2434.3,1.524826]
[1642976629161,2.35587,2435.1,2434.3,1.524826]
[1642976629664,3.35587,2435.1,2434.3,1.524826]
[1642976629861,2.35587,2435.1,2434.3,1.524826]
[1642976630111,3.0559183,2435.0,2434.3,1.524826]
[1642976630309,2.0559183,2435.0,2434.3,1.524826]
[1642976630509,1.0,2434.9,2434.3,1.524826]
[1642976630709,3.0559183,2435.0,2433.9,3.02286581]
[1642976630909,3.0559183,2435.0,2433.9,2.05564]
[1642976630910,1.0279375,2434.8,2433.9,2.05564]
[1642976631309,1.0,2434.9,2433.9,2.05564]
[1642976631910,1.0,2434.9,2433.7,2.87941466]
[1642976631911,1.0279589,2434.7,2433.7,2.87941466]
[1642976632116,2.3030332,2434.6,2433.7,0.82357466]
[1642976632316,4.1122738,2434.8,2433.7,0.82357466]
[1642976632510,1.0,2434.6,2433.7,0.82357466]
[1642976632711,1.0,2434.7,2433.7,0.82357466]
[1642976632912,1.0,2434.7,2433.8,1.13793409]
[1642976633213,1.3,2434.7,2433.8,1.13793409]
[1642976633414,1.0,2434.7,2433.8,1.13793409]
[1642976633878,1.0280982,2434.5,2433.8,1.13793409]
[1642976636981,2.0280982,2434.5,2433.8,1.13793409]
[1642976637383,2.0280982,2434.5,2433.3,2.05605]
[1642976638015,2.0563282,2434.5,2433.3,1.00264684]
[1642976638217,1.0282249,2434.2,2433.3,1.00264684]
[1642976638417,1.0282249,2434.2,2433.5,1.28019463]
[1642976639820,1.0,2434.4,2433.5,1.28019463]
[1642976640019,2.05646,2434.5,2433.5,1.28019463]
[1642976640423,2.35646,2434.5,2433.5,1.28019463]
[1642976640620,3.38469,2434.5,2433.5,1.28019463]
[1642976640822,6.11876496,2434.5,2433.1,2.05618]
[1642976641021,1.0,2434.4,2433.1,2.05618]
[1642976641267,1.9125,2434.4,2433.2,0.04092649]
[1642976641464,2.42157167,2434.3,2433.2,0.34092649]
[1642976641668,0.9125,2434.4,2433.3,0.1643]
[1642976641864,0.9125,2434.4,2433.3,1.52829621]
[1642976642068,0.9125,2434.4,2433.3,1.82829621]
[1642976642667,2.41966931,2434.3,2433.3,1.52829621]
[1642976643870,3.41966931,2434.3,2433.3,1.52829621]
[1642976644069,1.0,2434.2,2433.3,1.52829621]
[1642976644473,3.41966931,2434.3,2433.3,0.04035807]
[1642976645130,4.44795931,2434.3,2433.3,0.04035807]
[1642976645731,3.71966931,2434.3,2433.1,0.04149492]
[1642976645936,4.22540931,2434.3,2433.1,0.04149492]
[1642976646734,5.25372931,2434.3,2433.1,0.04149492]
[1642976646937,6.28206931,2434.3,2433.1,0.04149492]
[1642976647134,1.0284,2434.1,2433.1,0.04149492]
[1642976647335,1.3284,2434.1,2433.1,0.04149492]
[1642976647539,0.3,2434.0,2433.1,0.04149492]
[1642976647739,3.75049988,2434.0,2433.1,0.04149492]
[1642976647941,4.34249988,2434.0,2433.1,0.04149492]
[1642976648146,1.0,2433.9,2433.1,0.04149492]
[1642976648344,1.0,2433.9,2433.0,0.04206334]
[1642976648345,2.02844,2433.9,2433.0,0.04206334]
[1642976648543,2.4371359,2433.8,2433.0,0.04206334]
[1642976648773,2.02844,2433.9,2433.0,0.04206334]
[1642976649765,3.05691,2433.9,2433.0,0.04206334]
[1642976650165,0.3,2433.8,2433.0,0.04206334]
[1642976650566,3.05691,2433.9,2433.0,0.04206334]
[1642976650772,3.05691,2433.9,2432.6,0.04433703]
[1642976650972,2.05691,2433.9,2432.6,0.04433703]
[1642976651267,2.05691,2433.9,2432.6,1.20548845]
[1642976651466,1.02851,2433.8,2432.6,1.20548845]
[1642976651670,4.50540328,2433.8,2432.7,0.04376861]
[1642976651868,4.50540328,2433.8,2432.7,0.34376861]
[1642976652070,0.592,2433.7,2432.6,0.04433703]
[1642976652270,0.592,2433.7,2432.8,0.04320019]
[1642976652505,2.47275299,2433.6,2432.6,0.04433703]
[1642976652708,1.02865,2433.4,2432.7,1.24696564]
[1642976652910,2.05728,2433.4,2432.5,0.04490546]
[1642976653112,2.05728,2433.4,2432.8,0.04320019]
[1642976653316,2.05728,2433.4,2432.5,0.04490546]
[1642976653913,2.05728,2433.4,2432.5,1.40337593]
[1642976654114,1.02863,2433.4,2432.5,1.70337593]
[1642976654313,1.02863,2433.4,2432.6,0.04433703]
[1642976654517,2.05732,2433.4,2432.6,0.04433703]
[1642976654716,1.02875,2433.2,2432.6,0.04433703]
[1642976655018,2.4225098,2433.1,2432.5,0.04490546]
[1642976655215,2.42085659,2433.1,2432.5,0.04490546]
[1642976655414,3.42085659,2433.1,2432.1,0.04717915]
[1642976655620,3.44962659,2433.1,2432.2,0.04661073]
[1642976655822,4.04162659,2433.1,2431.9,0.048316]
[1642976656022,1.0,2433.0,2432.1,0.04717915]
[1642976656281,3.46774031,2432.9,2431.9,0.048316]
[1642976656673,1.0,2432.8,2431.9,0.048316]
[1642976656872,2.63687624,2432.7,2431.9,0.048316]
[1642976657074,2.63560437,2432.7,2431.9,1.16579665]
[1642976657475,2.63560437,2432.7,2432.0,0.04774757]
[1642976657875,0.592,2432.6,2432.0,0.04774757]
[1642976658097,0.592,2432.6,2431.7,0.04945284]
[1642976658098,1.6210067,2432.6,2431.7,0.04945284]
[1642976658480,2.5324625,2432.5,2431.5,0.05058969]
[1642976658676,2.5324625,2432.5,2431.7,1.26698732]
[1642976659075,2.5324625,2432.5,2431.8,0.04888442]
[1642976659275,5.0757254,2432.6,2431.8,0.04888442]
[1642976659475,2.0581303,2432.5,2431.8,0.04888442]
[1642976659675,3.0581303,2432.5,2431.8,0.04888442]
[1642976660106,3.0581303,2432.5,2431.4,0.05115811]
[1642976660305,5.51037485,2432.5,2431.4,0.05115811]
[1642976661020,5.51037485,2432.5,2431.4,1.30769006]
[1642976661415,5.51037485,2432.5,2431.5,0.05058969]
[1642976661613,2.0582914,2432.3,2431.5,0.05058969]
[1642976661812,1.02917,2432.2,2431.5,0.05058969]
[1642976662013,1.62117,2432.2,2431.5,0.05058969]
[1642976663015,2.4173223,2432.1,2431.5,0.05058969]
[1642976663218,1.62117,2432.2,2431.1,0.05286338]
[1642976663420,1.02921,2432.1,2431.1,0.05286338]
[1642976663623,2.05846,2432.1,2431.1,0.05286338]
[1642976663876,2.05846,2432.1,2431.2,1.18030724]
[1642976663877,5.52547054,2432.1,2431.2,1.18030724]
[1642976664082,0.592,2432.0,2431.2,2.26816923]
[1642976664279,0.592,2432.0,2431.3,0.05172654]
[1642976664880,1.0293217,2431.9,2431.3,0.05172654]
[1642976665081,1.6213217,2431.9,2431.3,0.05172654]
[1642976667081,2.6506817,2431.9,2431.3,0.05172654]
[1642976668727,2.42226672,2431.8,2431.3,0.05172654]
[1642976668931,0.592,2431.8,2431.3,0.05172654]
[1642976669226,1.592,2431.8,2430.9,0.05400023]
[1642976669826,1.592,2431.8,2430.9,1.30875791]
[1642976669827,4.11132335,2431.8,2430.9,1.30875791]
[1642976670225,4.11132335,2431.8,2431.0,0.05343181]
[1642976670826,5.44076775,2431.8,2430.7,0.05513708]
[1642976671029,5.44076775,2431.8,2430.5,0.05627393]
[1642976671030,5.74076775,2431.8,2430.5,0.05627393]
[1642976671472,5.74076775,2431.8,2430.7,1.21973146]
[1642976671872,2.05898,2431.7,2430.8,0.05456865]
[1642976672075,2.87251888,2431.6,2430.8,0.05456865]
[1642976672474,1.0,2431.5,2430.8,0.05456865]
[1642976672679,2.1285,2431.5,2430.8,0.05456865]
[1642976672874,0.3,2431.4,2430.3,0.05741077]
[1642976673278,0.6,2431.4,2430.3,0.05741077]
[1642976673478,1.6296,2431.4,2430.3,0.05741077]
[1642976673676,1.6296,2431.4,2430.3,1.28295212]
[1642976674182,1.6296,2431.4,2430.4,0.05684235]
[1642976675410,2.659208,2431.4,2430.4,0.05684235]
[1642976675607,1.0,2431.3,2430.4,0.05684235]
[1642976677611,1.592,2431.3,2430.4,0.05684235]
[1642976678414,0.20574,2431.2,2430.4,0.05684235]
[1642976678612,2.43581878,2431.2,2430.4,0.05684235]
[1642976678861,3.76550978,2431.2,2430.4,0.05684235]
[1642976679063,1.0,2431.1,2430.4,0.05684235]
[1642976679268,2.56157702,2431.0,2430.3,0.05741077]
[1642976679463,2.56157702,2431.0,2429.9,0.05968447]
[1642976680064,2.56157702,2431.0,2430.0,1.17924663]
[1642976680466,1.0,2430.9,2430.1,1.51757354]
[1642976680869,1.0,2430.9,2430.2,0.0579792]
[1642976681068,3.15357702,2431.0,2430.9,2.0]
[1642976681467,0.592,2431.0,2430.9,2.05400023]
[1642976681667,2.98584032,2431.0,2430.9,2.05400023]
[1642976682066,0.892,2431.0,2430.9,2.05400023]
[1642976682268,1.892,2431.0,2430.9,2.05400023]
[1642976683110,4.6632467,2431.0,2430.9,2.05400023]
[1642976683310,4.9632467,2431.0,2430.9,2.05400023]
[1642976683711,4.4575067,2431.0,2430.9,2.05400023]
[1642976684310,4.1057067,2431.0,2430.9,2.05400023]
[1642976684912,28.2957067,2431.0,2430.9,2.05400023]
[1642976686358,25.7302,2431.0,2430.9,2.05400023]
[1642976686754,26.0302,2431.0,2430.9,2.05400023]
[1642976686957,25.7302,2431.0,2430.9,2.05400023]
[1642976687166,26.0302,2431.0,2430.9,2.05400023]
[1642976689261,26.0302,2431.0,2429.7,0.00200908]
[1642976689464,27.69818217,2430.9,2429.6,1.75135428]
[1642976689665,26.2498967,2430.6,2429.6,3.05135428]
[1642976689862,0.592,2430.5,2429.7,1.4024976]
[1642976690717,1.62196,2430.5,2429.7,1.4024976]
[1642976691117,4.120021,2430.4,2429.1,1.1339]
[1642976691319,4.120021,2430.4,2429.2,3.5011913]
[1642976691320,24.782,2430.3,2429.2,3.5011913]
[1642976691620,24.782,2430.3,2429.2,1.15015839]
[1642976691621,2.44433023,2430.2,2429.2,1.15015839]
[1642976691817,3.03633023,2430.2,2429.2,1.15015839]
[1642976692017,27.22633023,2430.2,2429.2,1.10015839]
[1642976692223,27.22633023,2430.2,2429.2,2.33942767]
[1642976692620,28.25643023,2430.2,2429.2,2.33942767]
[1642976692819,29.28656023,2430.2,2429.2,1.24028862]
[1642976693021,30.31660623,2430.2,2429.2,1.24028862]
[1642976693420,30.31660623,2430.2,2429.2,1.54028862]
[1642976695271,30.4048062,2430.2,2429.2,1.54028862]
[1642976698722,30.7048062,2430.2,2429.2,1.54028862]
[1642976700032,30.7048062,2430.2,2429.2,1.24028862]
[1642976700229,30.7048062,2430.2,2429.2,1.54028862]
[1642976700430,30.7048062,2430.2,2429.2,1.24028862]
[1642976700628,30.6548062,2430.2,2429.2,1.24028862]
[1642976701035,1.03016,2430.0,2429.2,1.24028862]
[1642976701265,0.592,2429.9,2429.2,1.24028862]
[1642976701467,1.0301757,2429.8,2429.2,1.24028862]
[1642976701667,0.592,2429.9,2429.8,2.0603514]
[1642976702068,3.00757968,2429.9,2429.8,2.0603514]
[1642976702272,0.592,2429.9,2429.8,2.0603514]
[1642976702470,3.00522342,2429.9,2429.8,2.0603514]
[1642976703274,0.592,2429.9,2429.8,2.0603514]
[1642976703476,3.07195752,2429.9,2429.8,2.0603514]
[1642976704480,0.592,2429.9,2429.8,2.0603514]
[1642976705020,2.95909232,2429.9,2429.8,2.0603514]
[1642976706619,3.25909232,2429.9,2429.8,2.0603514]
[1642976708220,2.95909232,2429.9,2429.8,2.0603514]
[1642976709267,0.592,2429.9,2429.8,2.0603514]
[1642976710068,2.97404937,2429.9,2429.8,2.0603514]
[1642976710267,2.9112282,2429.9,2429.8,2.0603514]
[1642976710471,2.91852348,2429.9,2429.8,2.0603514]
[1642976710665,0.542,2429.9,2429.8,2.0603514]
[1642976710870,6.1812408,2430.1,2429.8,2.0603514]
[1642976711071,1.56999187,2430.9,2429.9,3.21633592]
[1642976711280,0.592,2430.9,2430.6,0.01220783]
[1642976711471,3.3161,2431.9,2430.8,1.36798434]
[1642976711472,7.1114,2431.9,2430.8,1.36798434]
[1642976711672,1.02953,2431.8,2430.9,0.01106455]
[1642976711870,1.2374,2432.2,2431.2,0.01215548]
[1642976711871,1.44314,2432.2,2431.2,0.01215548]
[1642976712069,0.20574,2432.2,2431.6,1.32202775]
[1642976712271,17.8946,2432.7,2431.6,1.32202775]
[1642976712549,9.17039621,2432.8,2431.6,1.32202775]
[1642976712550,0.01265621,2432.8,2431.6,1.32202775]
[1642976712744,0.592,2433.1,2431.6,1.32202775]
[1642976712745,10.71416737,2433.1,2432.4,1.08532134]
[1642976712939,8.65604737,2433.2,2432.4,0.66634473]
[1642976713147,8.65604737,2433.2,2432.4,1.74514473]
[1642976713338,0.20574,2433.3,2432.4,1.74514473]
[1642976713539,8.66827221,2433.4,2432.8,1.18433565]
[1642976713540,0.01222484,2433.4,2432.8,1.18433565]
[1642976713740,0.24574,2433.5,2432.8,1.18433565]
[1642976713938,0.04,2433.5,2432.8,1.18433565]
[1642976714545,0.04,2433.5,2433.2,1.11028958]
[1642976716143,0.04,2433.7,2433.2,1.11028958]
[1642976716373,0.04,2433.7,2433.2,2.00228958]
[1642976717377,0.04,2433.7,2433.2,2.84148958]
[1642976717578,0.04,2433.9,2433.4,0.82755784]
[1642976717777,0.04,2433.9,2433.5,0.592]
[1642976717978,0.04,2434.3,2433.6,1.81525358]
[1642976718177,0.04,2434.3,2433.6,1.51525358]
[1642976718576,0.04,2434.3,2434.2,1.29751504]
[1642976719177,0.04,2434.3,2434.2,1.59751504]
[1642976720012,0.04,2434.3,2434.2,1.29751504]
[1642976720218,0.04,2434.3,2434.1,0.5659]
[1642976720432,0.04,2434.3,2434.1,0.1952]
[1642976721218,0.04,2434.3,2434.1,0.12150924]
[1642976728322,0.04,2434.3,2434.1,0.07601194]
[1642976730128,0.04,2434.3,2434.1,1.194e-05]
[1642976730929,0.04,2434.3,2433.4,1.14289481]
[1642976732771,0.04,2434.3,2432.8,0.592]
[1642976732974,0.07635281,2434.3,2432.8,0.592]
[1642976733171,7.43,2434.1,2432.8,0.592]
[1642976733373,0.33764136,2434.0,2432.8,0.592]
[1642976733776,0.63764136,2434.0,2432.8,0.592]
[1642976733973,0.6,2434.0,2433.1,1.27760175]
[1642976734177,1.6,2434.0,2433.1,1.27760175]
[1642976734575,31.62,2434.1,2433.1,1.27760175]
[1642976734778,7.43,2434.0,2433.1,1.27760175]
[1642976735012,31.62,2434.0,2433.1,1.27760175]
[1642976735411,31.62,2434.0,2432.5,0.6044154]
[1642976735619,31.62,2434.0,2432.4,0.1643]
[1642976735816,24.19,2433.9,2432.3,1.0]
[1642976736415,24.19,2433.9,2432.4,2.48002974]
[1642976736615,24.19,2433.9,2433.0,1.2170216]
[1642976737017,8.03,2434.0,2433.0,1.2170216]
[1642976737617,8.03,2434.0,2432.5,1.3]
[1642976737816,8.03,2434.0,2432.5,0.3]
[1642976738016,8.03,2434.0,2432.5,1.0]
[1642976738216,8.03,2434.0,2432.4,4.15751362]
[1642976738416,8.03,2434.0,2432.5,1.0]
[1642976738874,8.03,2434.0,2432.8,1.13743645]
[1642976739376,1.0,2433.9,2432.8,1.13743645]
[1642976740373,1.20574,2433.9,2432.8,1.13743645]
[1642976742177,0.20574,2433.9,2432.8,1.13743645]
[1642976742619,0.50574,2433.9,2432.8,1.13743645]
[1642976743221,0.80574,2433.9,2432.8,1.13743645]
[1642976743423,0.50574,2433.9,2432.8,1.13743645]
[1642976743623,0.80574,2433.9,2432.8,1.13743645]
[1642976743819,0.50574,2433.9,2432.8,1.13743645]
[1642976744119,0.80574,2433.9,2432.8,1.13743645]
[1642976744421,0.50574,2433.9,2432.8,1.13743645]
[1642976745121,0.80574,2433.9,2432.8,1.13743645]
[1642976745325,0.50574,2433.9,2432.8,1.13743645]
[1642976745521,0.80574,2433.9,2432.8,1.13743645]
[1642976745927,0.20574,2433.9,2432.8,1.13743645]
[1642976749069,0.20574,2433.9,2433.2,1.3730618]
[1642976750825,0.3,2433.8,2433.2,1.3730618]
[1642976751018,0.20574,2433.9,2433.2,1.3730618]
[1642976752820,0.20574,2433.9,2433.6,1.26432238]
[1642976753621,0.20574,2433.9,2432.9,1.0284]
[1642976754474,0.20574,2433.9,2433.4,1.18666739]
[1642976754673,0.20574,2433.9,2433.4,1.13666739]
[1642976757526,0.50574,2434.1,2433.4,1.13666739]
[1642976757929,0.50574,2434.1,2433.8,1.49066547]
[1642976758128,2.09739,2434.3,2433.8,1.49066547]
[1642976758129,0.04,2434.3,2433.8,1.49066547]
[1642976759032,0.04,2434.3,2434.2,1.47675076]
[1642976759732,0.0001,2434.3,2434.2,1.47675076]
[1642976761463,0.0001,2434.6,2434.2,2.47675076]
[1642976761663,0.0001,2434.6,2434.2,5.07694086]
[1642976761862,0.0001,2434.6,2434.2,4.07694086]
[1642976762062,0.0001,2434.6,2434.3,1.0]
[1642976762262,0.0001,2434.6,2434.4,2.46421909]
[1642976762464,0.0001,2434.6,2434.4,0.9725]
[1642976764069,0.0001,2434.6,2434.5,1.02758]
[1642976764468,0.0001,2434.6,2434.5,2.02758]
[1642976765117,0.0001,2435.0,2434.6,1.48129475]
[1642976765317,0.0001,2435.0,2434.7,1.02762]
[1642976765721,0.0001,2435.0,2434.7,2.02762]
[1642976769876,0.0001,2435.0,2434.7,2.02510289]
[1642976775225,0.0001,2435.0,2434.7,1.02510289]
[1642976775827,0.0001,2435.0,2434.6,2.05513]
[1642976779282,0.04017885,2434.9,2434.3,2.05538]
[1642976779683,0.0001,2435.0,2434.2,2.05553]
[1642976780323,0.0001,2435.0,2434.0,2.05569]
[1642976780625,0.0001,2435.0,2434.1,1.34729264]
[1642976781235,0.0001,2435.0,2434.1,2.34729264]
[1642976782230,0.0001,2435.0,2434.1,1.0]
[1642976782630,0.0001,2435.0,2434.0,2.05569]
[1642976783236,0.0001,2435.0,2433.8,2.36328158]
[1642976783237,1.02803,2434.8,2433.8,2.36328158]
[1642976783433,1.02803,2434.8,2434.2,1.43008424]
[1642976783633,0.6,2434.7,2433.6,2.05602]
[1642976783886,0.3,2434.7,2433.6,2.05602]